[Event "*** Titled Tuesday Blitz"]
[Site "Chess.com"]
[Date "2020.04.14"]
[Round "6"]
[White "CalinGheorghiu"]
[Black "IvanRadivojevic"]
[Result "0-1"]
[WhiteElo "2343"]
[BlackElo "2539"]
[TimeControl "180+1"]
[EndTime "11:03:40 PDT"]
[Termination "IvanRadivojevic won on time"]

1. e4 {[%clk 0:02:57.5]} 1... c6 {[%clk 0:02:59.9]} 2. Nc3 {[%clk 0:02:56]} 2...
d5 {[%clk 0:03:00.8]} 3. Nf3 {[%clk 0:02:56.2]} 3... Nf6 {[%clk 0:03:00.8]} 4.
e5 {[%clk 0:02:50.9]} 4... Ne4 {[%clk 0:03:01.1]} 5. Ne2 {[%clk 0:02:49.3]} 5...
Qb6 {[%clk 0:03:01.2]} 6. d4 {[%clk 0:02:47.9]} 6... e6 {[%clk 0:03:00.9]} 7.
Ng3 {[%clk 0:02:43.8]} 7... Nxg3 {[%clk 0:03:00.8]} 8. hxg3 {[%clk 0:02:42.7]}
8... c5 {[%clk 0:03:00.1]} 9. c3 {[%clk 0:02:41]} 9... Nc6 {[%clk 0:03:00]} 10.
Be2 {[%clk 0:02:39.2]} 10... Be7 {[%clk 0:02:59.4]} 11. O-O {[%clk 0:02:31.7]}
11... Bd7 {[%clk 0:02:59.2]} 12. Qd2 {[%clk 0:02:05.3]} 12... O-O {[%clk
0:02:58.4]} 13. Qf4 {[%clk 0:02:04.5]} 13... f5 {[%clk 0:02:52.5]} 14. g4 {[%clk
0:01:50.9]} 14... cxd4 {[%clk 0:02:48.3]} 15. cxd4 {[%clk 0:01:49.1]} 15... Kh8
{[%clk 0:02:39.1]} 16. Bd3 {[%clk 0:01:26.8]} 16... Nb4 {[%clk 0:02:35.3]} 17.
Bb1 {[%clk 0:01:25.3]} 17... Be8 {[%clk 0:02:32.9]} 18. a3 {[%clk 0:01:21.2]}
18... Nc6 {[%clk 0:02:32.7]} 19. gxf5 {[%clk 0:01:15.7]} 19... Bg6 {[%clk
0:02:32.4]} 20. g4 {[%clk 0:01:06.4]} 20... exf5 {[%clk 0:02:18.7]} 21. gxf5
{[%clk 0:01:06.2]} 21... Rxf5 {[%clk 0:02:12]} 22. Bxf5 {[%clk 0:01:02]} 22...
Rf8 {[%clk 0:02:12.2]} 23. Bxg6 {[%clk 0:00:53.7]} 23... Rxf4 {[%clk 0:02:07.6]}
24. Bxf4 {[%clk 0:00:54.6]} 24... hxg6 {[%clk 0:02:06.1]} 25. Kg2 {[%clk
0:00:53.4]} 25... Nxd4 {[%clk 0:02:03.1]} 26. Be3 {[%clk 0:00:53.1]} 26... Qe6
{[%clk 0:01:59.1]} 27. Rh1+ {[%clk 0:00:49.1]} 27... Kg8 {[%clk 0:01:58.4]} 28.
Nxd4 {[%clk 0:00:48.8]} 28... Qg4+ {[%clk 0:01:54.2]} 29. Kf1 {[%clk 0:00:48.8]}
29... Bc5 {[%clk 0:01:54.5]} 30. Rg1 {[%clk 0:00:35.5]} 30... Qh3+ {[%clk
0:01:51.5]} 31. Ke1 {[%clk 0:00:35.3]} 31... Qh2 {[%clk 0:01:37.6]} 32. Kd2
{[%clk 0:00:35]} 32... Qxe5 {[%clk 0:01:36.5]} 33. Nc2 {[%clk 0:00:29.3]} 33...
d4 {[%clk 0:01:34.4]} 34. Bg5 {[%clk 0:00:26.8]} 34... d3 {[%clk 0:01:24.3]} 35.
Kxd3 {[%clk 0:00:26.6]} 35... Qd5+ {[%clk 0:01:20.1]} 36. Kc3 {[%clk 0:00:25.5]}
36... Qe5+ {[%clk 0:01:19.9]} 37. Kc4 {[%clk 0:00:15.4]} 37... b5+ {[%clk
0:01:16.6]} 38. Kd3 {[%clk 0:00:13.6]} 38... Bxf2 {[%clk 0:01:13.5]} 39. Rgf1
{[%clk 0:00:11.3]} 39... Qd5+ {[%clk 0:01:02.3]} 40. Ke2 {[%clk 0:00:10.1]}
40... Bc5 {[%clk 0:01:00.2]} 41. Bd2 {[%clk 0:00:08.8]} 41... Qc4+ {[%clk
0:00:59.4]} 42. Kf3 {[%clk 0:00:07]} 42... Qxc2 {[%clk 0:00:59.1]} 43. Bc3
{[%clk 0:00:07.4]} 43... Qd3+ {[%clk 0:00:57.4]} 44. Kg2 {[%clk 0:00:06.4]}
44... Qe2+ {[%clk 0:00:57.4]} 45. Kh1 {[%clk 0:00:05.4]} 45... Bd6 {[%clk
0:00:56.5]} 0-1

[Event "*** Titled Tuesday Blitz"]
[Site "Chess.com"]
[Date "2020.04.14"]
[Round "6"]
[White "MrChessSponge"]
[Black "RuperezA"]
[Result "0-1"]
[WhiteElo "2389"]
[BlackElo "2274"]
[TimeControl "180+1"]
[EndTime "11:03:41 PDT"]
[Termination "RuperezA won by resignation"]

1. Nf3 {[%clk 0:03:00.9]} 1... d5 {[%clk 0:02:59.6]} 2. d4 {[%clk 0:02:57.5]}
2... e6 {[%clk 0:02:59.1]} 3. c4 {[%clk 0:02:56.7]} 3... Nf6 {[%clk 0:02:58.6]}
4. g3 {[%clk 0:02:55.1]} 4... c5 {[%clk 0:02:56.7]} 5. cxd5 {[%clk 0:02:54.6]}
5... exd5 {[%clk 0:02:57.6]} 6. Bg2 {[%clk 0:02:54.2]} 6... Nc6 {[%clk
0:02:57.9]} 7. O-O {[%clk 0:02:53.1]} 7... Be7 {[%clk 0:02:57.9]} 8. Nc3 {[%clk
0:02:53]} 8... Bf5 {[%clk 0:02:57.4]} 9. dxc5 {[%clk 0:02:38.5]} 9... d4 {[%clk
0:02:56.9]} 10. Na4 {[%clk 0:02:32.2]} 10... Be4 {[%clk 0:02:56.9]} 11. Bf4
{[%clk 0:02:25.3]} 11... Qd5 {[%clk 0:02:56.2]} 12. Qb3 {[%clk 0:02:14.4]} 12...
Qxb3 {[%clk 0:01:37.9]} 13. axb3 {[%clk 0:02:12.8]} 13... Rd8 {[%clk 0:01:38.8]}
14. Rac1 {[%clk 0:01:55]} 14... Nd5 {[%clk 0:01:35.1]} 15. Bd6 {[%clk
0:01:50.3]} 15... f5 {[%clk 0:01:24.5]} 16. Rfd1 {[%clk 0:01:45]} 16... Bf6
{[%clk 0:01:21.1]} 17. Ne1 {[%clk 0:01:28.4]} 17... Bxg2 {[%clk 0:01:08.8]} 18.
Kxg2 {[%clk 0:01:29.3]} 18... b5 {[%clk 0:01:08.8]} 19. Nc3 {[%clk 0:01:10.8]}
19... dxc3 {[%clk 0:01:04.8]} 20. Rxd5 {[%clk 0:01:08.4]} 20... cxb2 {[%clk
0:01:05.7]} 21. Rb1 {[%clk 0:01:08.5]} 21... Kf7 {[%clk 0:01:05.2]} 22. Nd3
{[%clk 0:01:08.4]} 22... Rhe8 {[%clk 0:01:01.8]} 23. Kf1 {[%clk 0:01:02.3]}
23... Ne7 {[%clk 0:00:53.4]} 24. Bxe7 {[%clk 0:00:54]} 24... Rxd5 {[%clk
0:00:53.2]} 25. Bxf6 {[%clk 0:00:54]} 25... Kxf6 {[%clk 0:00:54.1]} 26. Rxb2
{[%clk 0:00:54.3]} 26... a5 {[%clk 0:00:44.9]} 27. Ra2 {[%clk 0:00:53.8]} 27...
Ra8 {[%clk 0:00:41.9]} 28. Ke1 {[%clk 0:00:54]} 28... Rdd8 {[%clk 0:00:42.8]}
29. Kd2 {[%clk 0:00:53.6]} 29... Ke6 {[%clk 0:00:40.3]} 30. Kc3 {[%clk
0:00:53.8]} 30... Kd5 {[%clk 0:00:39.5]} 31. Rd2 {[%clk 0:00:52.7]} 31... Kc6
{[%clk 0:00:33.7]} 32. Rc2 {[%clk 0:00:48.6]} 32... b4+ {[%clk 0:00:30.4]} 33.
Kc4 {[%clk 0:00:47.2]} 33... Rd5 {[%clk 0:00:30.7]} 34. f4 {[%clk 0:00:42.4]}
34... Rad8 {[%clk 0:00:30.2]} 35. Ne5+ {[%clk 0:00:42.4]} 35... Rxe5 {[%clk
0:00:28.5]} 36. fxe5 {[%clk 0:00:41.6]} 36... Rd5 {[%clk 0:00:29.1]} 37. Ra2
{[%clk 0:00:37.3]} 37... Rxc5+ {[%clk 0:00:27]} 38. Kd4 {[%clk 0:00:37.6]} 38...
Rd5+ {[%clk 0:00:27.1]} 39. Kc4 {[%clk 0:00:37.8]} 39... Rxe5 {[%clk 0:00:26.4]}
40. Kd3 {[%clk 0:00:37.6]} 40... Kb5 {[%clk 0:00:25.5]} 41. e3 {[%clk
0:00:37.8]} 41... Rc5 {[%clk 0:00:24.7]} 42. Rf2 {[%clk 0:00:37.4]} 42... Rc3+
{[%clk 0:00:24.6]} 43. Kd4 {[%clk 0:00:37.6]} 43... Rxb3 {[%clk 0:00:25.5]} 44.
Rxf5+ {[%clk 0:00:37.8]} 44... Kb6 {[%clk 0:00:24.8]} 45. Rf7 {[%clk 0:00:38.3]}
45... a4 {[%clk 0:00:23.6]} 46. Rf8 {[%clk 0:00:36.9]} 46... a3 {[%clk
0:00:23.2]} 47. Kc4 {[%clk 0:00:37.1]} 47... Rb2 {[%clk 0:00:20.3]} 48. Rb8+
{[%clk 0:00:37.1]} 48... Kc7 {[%clk 0:00:19]} 49. Rb5 {[%clk 0:00:37.1]} 49...
a2 {[%clk 0:00:18.7]} 50. Ra5 {[%clk 0:00:37.5]} 50... b3 {[%clk 0:00:19.1]} 51.
Kc3 {[%clk 0:00:37.7]} 51... Rb1 {[%clk 0:00:18.7]} 52. Ra7+ {[%clk 0:00:37.8]}
52... Kb6 {[%clk 0:00:18.4]} 0-1

[Event "*** Titled Tuesday Blitz"]
[Site "Chess.com"]
[Date "2020.04.14"]
[Round "6"]
[White "lupta_robin"]
[Black "dcann0n88"]
[Result "1-0"]
[WhiteElo "2473"]
[BlackElo "2298"]
[TimeControl "180+1"]
[EndTime "11:03:42 PDT"]
[Termination "lupta_robin won on time"]

1. e4 {[%clk 0:03:00.9]} 1... c5 {[%clk 0:02:56.1]} 2. b3 {[%clk 0:03:00.6]}
2... b6 {[%clk 0:02:44]} 3. Bb2 {[%clk 0:03:00.4]} 3... Bb7 {[%clk 0:02:44.9]}
4. Nc3 {[%clk 0:03:00.3]} 4... e6 {[%clk 0:02:39.3]} 5. Nf3 {[%clk 0:02:57.3]}
5... d5 {[%clk 0:02:35.6]} 6. exd5 {[%clk 0:02:56]} 6... exd5 {[%clk 0:02:35.6]}
7. d4 {[%clk 0:02:56.1]} 7... Nf6 {[%clk 0:02:33.3]} 8. Bd3 {[%clk 0:02:42.2]}
8... Be7 {[%clk 0:02:28.6]} 9. O-O {[%clk 0:02:41.6]} 9... O-O {[%clk
0:02:29.1]} 10. Ne5 {[%clk 0:02:35.2]} 10... Nc6 {[%clk 0:02:28.1]} 11. Nxc6
{[%clk 0:02:33.1]} 11... Bxc6 {[%clk 0:02:28.1]} 12. Re1 {[%clk 0:02:31.9]}
12... Re8 {[%clk 0:02:22.6]} 13. Qf3 {[%clk 0:02:13.1]} 13... Qc7 {[%clk
0:02:13.2]} 14. h3 {[%clk 0:02:04.1]} 14... c4 {[%clk 0:02:03.8]} 15. Bf1 {[%clk
0:01:59.8]} 15... b5 {[%clk 0:02:03.8]} 16. Ne2 {[%clk 0:01:30.3]} 16... Bd6
{[%clk 0:01:50.9]} 17. Bc1 {[%clk 0:01:23.2]} 17... Re4 {[%clk 0:01:25.1]} 18.
Bg5 {[%clk 0:01:16.3]} 18... Nd7 {[%clk 0:01:13.8]} 19. c3 {[%clk 0:01:00.6]}
19... Rae8 {[%clk 0:01:12.3]} 20. b4 {[%clk 0:00:54.1]} 20... f6 {[%clk
0:00:50.8]} 21. Bd2 {[%clk 0:00:50.3]} 21... Nf8 {[%clk 0:00:50.6]} 22. Ng3
{[%clk 0:00:46.8]} 22... Bxg3 {[%clk 0:00:48.3]} 23. fxg3 {[%clk 0:00:47.7]}
23... Qe7 {[%clk 0:00:32]} 24. Kf2 {[%clk 0:00:41.2]} 24... Ng6 {[%clk
0:00:23.7]} 25. Rxe4 {[%clk 0:00:21.7]} 25... Qxe4 {[%clk 0:00:16.1]} 26. Qxe4
{[%clk 0:00:16.4]} 26... Rxe4 {[%clk 0:00:17]} 27. Be2 {[%clk 0:00:15.6]} 27...
Ne7 {[%clk 0:00:13.7]} 28. a4 {[%clk 0:00:12.5]} 28... bxa4 {[%clk 0:00:12.9]}
29. Bd1 {[%clk 0:00:13]} 29... Nc8 {[%clk 0:00:07.5]} 30. Bxa4 {[%clk
0:00:13.4]} 30... Bxa4 {[%clk 0:00:07.1]} 31. Rxa4 {[%clk 0:00:13.9]} 31... Re7
{[%clk 0:00:05.4]} 32. Bf4 {[%clk 0:00:13.7]} 32... Nb6 {[%clk 0:00:05.7]} 33.
Ra5 {[%clk 0:00:13.7]} 33... Kf7 {[%clk 0:00:05.5]} 34. Bb8 {[%clk 0:00:14.1]}
34... Rb7 {[%clk 0:00:04.3]} 35. Bxa7 {[%clk 0:00:13.3]} 35... Ke6 {[%clk
0:00:04.5]} 36. Ra6 {[%clk 0:00:12.7]} 1-0

[Event "*** Titled Tuesday Blitz"]
[Site "Chess.com"]
[Date "2020.04.14"]
[Round "6"]
[White "VALPARAISO37"]
[Black "garfield_pg"]
[Result "1-0"]
[WhiteElo "2367"]
[BlackElo "2197"]
[TimeControl "180+1"]
[EndTime "11:03:42 PDT"]
[Termination "VALPARAISO37 won on time"]

1. d4 {[%clk 0:03:00.9]} 1... c5 {[%clk 0:02:58.2]} 2. d5 {[%clk 0:03:00.7]}
2... e6 {[%clk 0:02:58.5]} 3. c4 {[%clk 0:03:01]} 3... Bd6 {[%clk 0:02:58.5]} 4.
g3 {[%clk 0:03:00.5]} 4... Bc7 {[%clk 0:02:58.2]} 5. d6 {[%clk 0:03:00.2]} 5...
Ba5+ {[%clk 0:02:58.1]} 6. Nc3 {[%clk 0:02:59.4]} 6... f5 {[%clk 0:02:57.6]} 7.
Bg2 {[%clk 0:02:59.3]} 7... Nf6 {[%clk 0:02:57.6]} 8. Nh3 {[%clk 0:02:59.4]}
8... Bxc3+ {[%clk 0:02:56.1]} 9. bxc3 {[%clk 0:02:59.1]} 9... O-O {[%clk
0:02:56.2]} 10. O-O {[%clk 0:02:59]} 10... Nc6 {[%clk 0:02:56.6]} 11. Rb1 {[%clk
0:02:46.6]} 11... Na5 {[%clk 0:02:55]} 12. Rb5 {[%clk 0:02:42.5]} 12... b6
{[%clk 0:02:55.1]} 13. Bxa8 {[%clk 0:02:41.2]} 13... Nxc4 {[%clk 0:02:45.6]} 14.
Bg2 {[%clk 0:02:36.7]} 14... Ba6 {[%clk 0:02:38.7]} 15. a4 {[%clk 0:02:34.6]}
15... Bxb5 {[%clk 0:02:37]} 16. axb5 {[%clk 0:02:33.4]} 16... Qb8 {[%clk
0:02:36.6]} 17. Bg5 {[%clk 0:02:14.7]} 17... h6 {[%clk 0:02:33.5]} 18. Bf4
{[%clk 0:02:02.3]} 18... g5 {[%clk 0:02:28]} 19. Bc1 {[%clk 0:02:01.9]} 19...
Qxd6 {[%clk 0:02:13.7]} 20. Qa4 {[%clk 0:02:01.7]} 20... Ne5 {[%clk 0:01:47.9]}
21. Rd1 {[%clk 0:01:57.9]} 21... Qc7 {[%clk 0:01:45.2]} 22. c4 {[%clk
0:01:54.7]} 22... Neg4 {[%clk 0:01:38.8]} 23. Bb2 {[%clk 0:01:52]} 23... Ne4
{[%clk 0:01:22.4]} 24. Qc2 {[%clk 0:01:33.6]} 24... Ngf6 {[%clk 0:01:19.1]} 25.
f3 {[%clk 0:01:28.8]} 25... g4 {[%clk 0:01:16.4]} 26. Nf4 {[%clk 0:01:24.6]}
26... Ng5 {[%clk 0:01:12.7]} 27. Qd2 {[%clk 0:01:18.5]} 27... gxf3 {[%clk
0:00:16.8]} 28. exf3 {[%clk 0:01:17.2]} 28... a5 {[%clk 0:00:08.5]} 29. Bxf6
{[%clk 0:01:14.5]} 29... Rxf6 {[%clk 0:00:08]} 30. Qxd7 {[%clk 0:01:14.6]} 30...
Qxd7 {[%clk 0:00:08.4]} 31. Rxd7 {[%clk 0:01:14]} 31... Rf7 {[%clk 0:00:08.6]}
32. Rxf7 {[%clk 0:01:09.2]} 32... Kxf7 {[%clk 0:00:09.5]} 33. Nd3 {[%clk
0:01:08.8]} 33... Kf6 {[%clk 0:00:08.2]} 34. f4 {[%clk 0:01:08.1]} 34... Nf7
{[%clk 0:00:08.1]} 35. Nb2 {[%clk 0:01:06.7]} 35... Nd6 {[%clk 0:00:08]} 36. Bf1
{[%clk 0:01:00.8]} 36... e5 {[%clk 0:00:07.9]} 37. Na4 {[%clk 0:01:00]} 37...
Nc8 {[%clk 0:00:07.8]} 38. Kf2 {[%clk 0:00:59.3]} 38... e4 {[%clk 0:00:08]} 39.
Ke3 {[%clk 0:00:59.2]} 39... Ke6 {[%clk 0:00:08.5]} 40. g4 {[%clk 0:00:59]}
40... fxg4 {[%clk 0:00:08.4]} 41. Kxe4 {[%clk 0:00:58.7]} 41... h5 {[%clk
0:00:08.2]} 42. h3 {[%clk 0:00:57.8]} 42... Kf6 {[%clk 0:00:07.2]} 43. hxg4
{[%clk 0:00:56.8]} 43... hxg4 {[%clk 0:00:08.1]} 44. Be2 {[%clk 0:00:56.2]}
44... g3 {[%clk 0:00:08.2]} 45. Bf3 {[%clk 0:00:53.9]} 45... Nd6+ {[%clk
0:00:03.8]} 46. Kd5 {[%clk 0:00:54]} 46... Nf5 {[%clk 0:00:04.2]} 47. Nxb6
{[%clk 0:00:52.3]} 47... Ne3+ {[%clk 0:00:02.8]} 48. Kxc5 {[%clk 0:00:50.7]}
48... Kf5 {[%clk 0:00:03.2]} 49. Nd5 {[%clk 0:00:44.7]} 1-0

[Event "*** Titled Tuesday Blitz"]
[Site "Chess.com"]
[Date "2020.04.14"]
[Round "6"]
[White "Incognito_Knight"]
[Black "biesiadnik"]
[Result "1-0"]
[WhiteElo "2758"]
[BlackElo "2595"]
[TimeControl "180+1"]
[EndTime "11:03:43 PDT"]
[Termination "Incognito_Knight won by resignation"]

1. e4 {[%clk 0:03:00.9]} 1... e6 {[%clk 0:02:59.8]} 2. d4 {[%clk 0:03:00.7]}
2... d5 {[%clk 0:03:00.2]} 3. Nd2 {[%clk 0:03:01.4]} 3... Nc6 {[%clk 0:03:00.1]}
4. Ngf3 {[%clk 0:03:01.1]} 4... Nf6 {[%clk 0:03:00]} 5. e5 {[%clk 0:03:01.6]}
5... Nd7 {[%clk 0:03:00.6]} 6. c4 {[%clk 0:02:59.4]} 6... dxc4 {[%clk
0:02:57.9]} 7. Nxc4 {[%clk 0:02:59.6]} 7... Nb6 {[%clk 0:02:58.5]} 8. Be2 {[%clk
0:02:47.5]} 8... Be7 {[%clk 0:02:57.9]} 9. O-O {[%clk 0:02:45.9]} 9... O-O
{[%clk 0:02:55.9]} 10. Be3 {[%clk 0:02:41.4]} 10... Nxc4 {[%clk 0:02:44.9]} 11.
Bxc4 {[%clk 0:02:40.9]} 11... b6 {[%clk 0:02:45.2]} 12. Rc1 {[%clk 0:02:26.4]}
12... Bb7 {[%clk 0:02:42]} 13. a3 {[%clk 0:02:26.5]} 13... Rc8 {[%clk
0:02:19.8]} 14. Qc2 {[%clk 0:02:16.7]} 14... g6 {[%clk 0:02:09.7]} 15. Rfd1
{[%clk 0:01:59.9]} 15... Na5 {[%clk 0:02:03]} 16. Ba2 {[%clk 0:01:48.3]} 16...
Bd5 {[%clk 0:02:01.1]} 17. b4 {[%clk 0:01:40]} 17... Bxa2 {[%clk 0:02:00.6]} 18.
Qxa2 {[%clk 0:01:40]} 18... Nb7 {[%clk 0:02:01.2]} 19. d5 {[%clk 0:01:37.9]}
19... Qd7 {[%clk 0:01:55.2]} 20. dxe6 {[%clk 0:01:28.7]} 20... Qxe6 {[%clk
0:01:55.1]} 21. Qxe6 {[%clk 0:01:28.5]} 21... fxe6 {[%clk 0:01:56]} 22. Rd7
{[%clk 0:01:28.6]} 22... Bd8 {[%clk 0:01:52]} 23. Rc6 {[%clk 0:00:35.4]} 23...
a5 {[%clk 0:01:22.1]} 24. Rxe6 {[%clk 0:00:28.1]} 24... axb4 {[%clk 0:01:21.8]}
25. axb4 {[%clk 0:00:29]} 25... Ra8 {[%clk 0:01:22.2]} 26. h4 {[%clk 0:00:25]}
26... Ra4 {[%clk 0:01:12.6]} 27. h5 {[%clk 0:00:24.3]} 27... Rf7 {[%clk
0:01:10.4]} 28. Re8+ {[%clk 0:00:21.8]} 28... Rf8 {[%clk 0:01:01.9]} 29. Rxf8+
{[%clk 0:00:19.1]} 29... Kxf8 {[%clk 0:01:02.8]} 30. h6 {[%clk 0:00:09.2]} 30...
Be7 {[%clk 0:00:51.9]} 31. Rxc7 {[%clk 0:00:07.2]} 31... Nd8 {[%clk 0:00:52.2]}
32. Bg5 {[%clk 0:00:04.9]} 32... Bxg5 {[%clk 0:00:24.2]} 33. Nxg5 {[%clk
0:00:05.8]} 33... Rxb4 {[%clk 0:00:24.9]} 34. Nxh7+ {[%clk 0:00:05.6]} 34... Ke8
{[%clk 0:00:25.2]} 35. Nf6+ {[%clk 0:00:06.3]} 35... Kf8 {[%clk 0:00:24.8]} 36.
h7 {[%clk 0:00:06.7]} 36... Rh4 {[%clk 0:00:24]} 37. g3 {[%clk 0:00:06.2]} 37...
Rh6 {[%clk 0:00:22.9]} 38. Rc8 {[%clk 0:00:06.3]} 38... Ke7 {[%clk 0:00:22.1]}
39. Ng8+ {[%clk 0:00:06.7]} 39... Kd7 {[%clk 0:00:19.8]} 40. Nxh6 {[%clk
0:00:07.6]} 1-0

[Event "*** Titled Tuesday Blitz"]
[Site "Chess.com"]
[Date "2020.04.14"]
[Round "6"]
[White "MathiasWomacka"]
[Black "vovachesss"]
[Result "1-0"]
[WhiteElo "2451"]
[BlackElo "2592"]
[TimeControl "180+1"]
[EndTime "11:03:43 PDT"]
[Termination "MathiasWomacka won on time"]

1. e4 {[%clk 0:02:52.2]} 1... e5 {[%clk 0:02:56.3]} 2. Nf3 {[%clk 0:02:50.6]}
2... d5 {[%clk 0:02:53.2]} 3. exd5 {[%clk 0:02:48]} 3... e4 {[%clk 0:02:53.5]}
4. Qe2 {[%clk 0:02:46.7]} 4... Nf6 {[%clk 0:02:53.9]} 5. d3 {[%clk 0:02:45.4]}
5... Qxd5 {[%clk 0:02:53.4]} 6. Nfd2 {[%clk 0:02:44.7]} 6... Nc6 {[%clk
0:02:45.2]} 7. Nxe4 {[%clk 0:02:38.7]} 7... Be6 {[%clk 0:02:45.2]} 8. Nbc3
{[%clk 0:02:31.8]} 8... Bb4 {[%clk 0:02:44.9]} 9. Bd2 {[%clk 0:02:30.6]} 9...
Qa5 {[%clk 0:02:44.6]} 10. Nxf6+ {[%clk 0:02:23]} 10... gxf6 {[%clk 0:02:44.4]}
11. a3 {[%clk 0:02:11.4]} 11... O-O-O {[%clk 0:02:42]} 12. Qd1 {[%clk
0:01:11.6]} 12... Qe5+ {[%clk 0:01:40.2]} 13. Be2 {[%clk 0:01:11.1]} 13... Bd6
{[%clk 0:01:17.8]} 14. Ne4 {[%clk 0:01:00.5]} 14... Rhg8 {[%clk 0:01:15.7]} 15.
Bc3 {[%clk 0:00:58]} 15... Nd4 {[%clk 0:00:58.7]} 16. Bxd4 {[%clk 0:00:52.2]}
16... Qxd4 {[%clk 0:00:58.6]} 17. c3 {[%clk 0:00:52.7]} 17... Qe5 {[%clk
0:00:55.2]} 18. Bf3 {[%clk 0:00:45.9]} 18... f5 {[%clk 0:00:53.7]} 19. d4 {[%clk
0:00:46.1]} 19... Qf4 {[%clk 0:00:28.3]} 20. Ng3 {[%clk 0:00:38.5]} 20... Bc4
{[%clk 0:00:26]} 21. Qa4 {[%clk 0:00:32.3]} 21... Rde8+ {[%clk 0:00:25.3]} 22.
Kd1 {[%clk 0:00:32.4]} 22... Ba6 {[%clk 0:00:14.3]} 23. b4 {[%clk 0:00:25.1]}
23... Be5 {[%clk 0:00:09.8]} 24. b5 {[%clk 0:00:23.6]} 24... Bxd4 {[%clk
0:00:10]} 25. cxd4 {[%clk 0:00:22.5]} 25... Rd8 {[%clk 0:00:10.7]} 26. Ne2
{[%clk 0:00:21.3]} 26... Qd6 {[%clk 0:00:03]} 27. bxa6 {[%clk 0:00:21.1]} 27...
c5 {[%clk 0:00:02.8]} 28. axb7+ {[%clk 0:00:20.2]} 28... Kb8 {[%clk 0:00:03.3]}
29. Rc1 {[%clk 0:00:16]} 29... cxd4 {[%clk 0:00:02.4]} 30. Rc8+ {[%clk
0:00:15.5]} 30... Rxc8 {[%clk 0:00:02.6]} 31. bxc8=Q+ {[%clk 0:00:15.4]} 31...
Rxc8 {[%clk 0:00:03.4]} 32. Qb5+ {[%clk 0:00:13.7]} 32... Kc7 {[%clk 0:00:02.9]}
33. Qc4+ {[%clk 0:00:11]} 1-0

[Event "*** Titled Tuesday Blitz"]
[Site "Chess.com"]
[Date "2020.04.14"]
[Round "6"]
[White "Angry_Twin"]
[Black "AlexOstrovskiy"]
[Result "1/2-1/2"]
[WhiteElo "2830"]
[BlackElo "2660"]
[TimeControl "180+1"]
[EndTime "11:03:44 PDT"]
[Termination "Game drawn by repetition"]

1. e4 {[%clk 0:03:00.9]} 1... c6 {[%clk 0:02:58.6]} 2. d4 {[%clk 0:03:00.7]}
2... d5 {[%clk 0:02:58.9]} 3. e5 {[%clk 0:03:01.4]} 3... c5 {[%clk 0:02:59.3]}
4. dxc5 {[%clk 0:03:01.1]} 4... e6 {[%clk 0:02:59.7]} 5. a3 {[%clk 0:03:00.8]}
5... Nc6 {[%clk 0:02:57.6]} 6. Nf3 {[%clk 0:03:00]} 6... Bxc5 {[%clk 0:02:58.2]}
7. b4 {[%clk 0:02:59.8]} 7... Bb6 {[%clk 0:02:58.6]} 8. Bd3 {[%clk 0:02:57.6]}
8... Nge7 {[%clk 0:02:58.8]} 9. O-O {[%clk 0:02:57.5]} 9... Ng6 {[%clk
0:02:59.2]} 10. Bb2 {[%clk 0:02:57.4]} 10... O-O {[%clk 0:02:57.3]} 11. Re1
{[%clk 0:02:51.4]} 11... Nf4 {[%clk 0:02:57.3]} 12. c4 {[%clk 0:02:51.3]} 12...
Nxd3 {[%clk 0:02:08.7]} 13. Qxd3 {[%clk 0:02:52.2]} 13... dxc4 {[%clk
0:02:01.2]} 14. Qxc4 {[%clk 0:02:51.8]} 14... Qd5 {[%clk 0:01:48.3]} 15. Qg4
{[%clk 0:02:48.8]} 15... Qb3 {[%clk 0:01:44]} 16. Bc1 {[%clk 0:02:27.8]} 16...
Qd3 {[%clk 0:01:29.9]} 17. Be3 {[%clk 0:01:38.4]} 17... Bxe3 {[%clk 0:01:15.1]}
18. Rxe3 {[%clk 0:01:37]} 18... Qd1+ {[%clk 0:01:15.3]} 19. Re1 {[%clk
0:01:36.1]} 19... Nxe5 {[%clk 0:01:13.7]} 20. Rxd1 {[%clk 0:01:33.4]} 20... Nxg4
{[%clk 0:01:13.5]} 21. Nc3 {[%clk 0:01:32.6]} 21... b6 {[%clk 0:01:05.3]} 22. h3
{[%clk 0:00:51.8]} 22... Nf6 {[%clk 0:00:57.7]} 23. Ne5 {[%clk 0:00:51.9]} 23...
Bb7 {[%clk 0:00:52.7]} 24. Nd7 {[%clk 0:00:51.8]} 24... Rfd8 {[%clk 0:00:51.6]}
25. Nxf6+ {[%clk 0:00:50.3]} 25... gxf6 {[%clk 0:00:52.5]} 26. Nb5 {[%clk
0:00:50.3]} 26... a6 {[%clk 0:00:44.1]} 27. Nc3 {[%clk 0:00:44.2]} 27... Bc6
{[%clk 0:00:33.2]} 28. Rac1 {[%clk 0:00:41.2]} 28... Kf8 {[%clk 0:00:32.1]} 29.
f3 {[%clk 0:00:36.3]} 29... Ke7 {[%clk 0:00:31.9]} 30. Kf2 {[%clk 0:00:36]}
30... Rxd1 {[%clk 0:00:28.8]} 31. Nxd1 {[%clk 0:00:36.9]} 31... Rc8 {[%clk
0:00:24.1]} 32. Ne3 {[%clk 0:00:32.4]} 32... Bb7 {[%clk 0:00:18.6]} 33. Rd1
{[%clk 0:00:17.1]} 33... Rc3 {[%clk 0:00:16.6]} 34. a4 {[%clk 0:00:17.5]} 34...
Rb3 {[%clk 0:00:14.3]} 35. Rd4 {[%clk 0:00:17]} 35... b5 {[%clk 0:00:04.6]} 36.
axb5 {[%clk 0:00:16.6]} 36... axb5 {[%clk 0:00:05.5]} 37. Rh4 {[%clk 0:00:16.8]}
37... Rb2+ {[%clk 0:00:05]} 38. Kg1 {[%clk 0:00:17]} 38... Rb3 {[%clk
0:00:04.6]} 39. Kf2 {[%clk 0:00:16.7]} 39... Rb2+ {[%clk 0:00:05.1]} 40. Kg1
{[%clk 0:00:16.5]} 40... Rb3 {[%clk 0:00:04.7]} 41. Kf2 {[%clk 0:00:16.9]}
1/2-1/2